[Event "Titled Tuesday Blitz December 13 Late 2022"]
[White "Kanyamarala, Tarun"]
[Black "Bjelobrk, Igor"]
[WhiteFideId "45004714"]
[BlackFideId "4300726"]
[WhiteElo "2305"]
[BlackElo "2335"]
[Result "0-1"]
[Round "04"]
[TimeControl "180+1"]
[Date "2022.12.14"]
[WhiteClock "0:01:41"]
[BlackClock "0:01:28"]

1. Nc3 {[%clk 0:02:59]}  c5 {[%clk 0:02:54]} 2. e4 {[%clk 0:02:57]}  e6 {[%clk 0:02:54]} 3. f4 {[%clk 0:02:53]}  Ne7 {[%clk 0:02:51]} 4. Nf3 {[%clk 0:02:51]}  Nec6 {[%clk 0:02:48]} 5. Be2 {[%clk 0:02:38]}  d5 {[%clk 0:02:46]} 6. O-O {[%clk 0:02:35]}  Be7 {[%clk 0:02:43]} 7. d3 {[%clk 0:02:34]}  O-O {[%clk 0:02:40]} 8. Qe1 {[%clk 0:02:31]}  dxe4 {[%clk 0:02:34]} 9. Nxe4 {[%clk 0:02:30]}  Nd4 {[%clk 0:02:33]} 10. Bd1 {[%clk 0:02:29]}  Nbc6 {[%clk 0:02:32]} 11. Nfd2 {[%clk 0:02:12]}  b6 {[%clk 0:02:28]} 12. a3 {[%clk 0:02:10]}  Bb7 {[%clk 0:02:16]} 13. Nc4 {[%clk 0:02:07]}  Qc7 {[%clk 0:02:06]} 14. Ne3 {[%clk 0:02:03]}  Rad8 {[%clk 0:02:03]} 15. f5 {[%clk 0:02:02]}  exf5 {[%clk 0:02:01]} 16. Nxf5 {[%clk 0:02:02]}  Nxf5 {[%clk 0:02:01]} 17. Rxf5 {[%clk 0:02:02]}  Nd4 {[%clk 0:02:01]} 18. Bf4 {[%clk 0:01:50]}  Qc6 {[%clk 0:01:56]} 19. Re5 {[%clk 0:01:49]}  Bd6 {[%clk 0:01:54]} 20. Qg3 {[%clk 0:01:43]}  Bxe5 {[%clk 0:01:36]} 21. Bxe5 {[%clk 0:01:42]}  f6 {[%clk 0:01:36]} 22. Bd6 {[%clk 0:01:41]}  Nf5 {[%clk 0:01:28]} 0-1


[Site "https://www.chess.com"]

[Event "Titled Tuesday Blitz December 13 Late 2022"]
[White "Kanyamarala, Trisha"]
[Black "Bernabeu Lopez, Carlos Javier"]
[WhiteFideId "45004722"]
[BlackFideId "2235366"]
[WhiteElo "2135"]
[BlackElo "2324"]
[Result "1-0"]
[Round "04"]
[TimeControl "180+1"]
[Date "2022.12.14"]
[WhiteClock "0:00:35"]
[BlackClock "0:00:37"]

1. c4 {[%clk 0:02:59]}  e6 {[%clk 0:02:59]} 2. Nc3 {[%clk 0:02:58]}  d5 {[%clk 0:02:58]} 3. e3 {[%clk 0:02:58]}  Nf6 {[%clk 0:02:58]} 4. Nf3 {[%clk 0:02:58]}  Be7 {[%clk 0:02:59]} 5. b3 {[%clk 0:02:58]}  O-O {[%clk 0:03:00]} 6. Bb2 {[%clk 0:02:58]}  b6 {[%clk 0:03:00]} 7. Be2 {[%clk 0:02:58]}  Bb7 {[%clk 0:03:01]} 8. O-O {[%clk 0:02:58]}  c5 {[%clk 0:03:01]} 9. cxd5 {[%clk 0:02:58]}  Nxd5 {[%clk 0:03:01]} 10. d4 {[%clk 0:02:57]}  Nc6 {[%clk 0:03:00]} 11. Rc1 {[%clk 0:02:55]}  Rc8 {[%clk 0:02:18]} 12. Ne4 {[%clk 0:02:45]}  f5 {[%clk 0:02:08]} 13. Nc3 {[%clk 0:02:32]}  Nxc3 {[%clk 0:01:59]} 14. Bxc3 {[%clk 0:02:31]}  cxd4 {[%clk 0:01:57]} 15. Nxd4 {[%clk 0:02:22]}  Nxd4 {[%clk 0:01:57]} 16. Bxd4 {[%clk 0:02:20]}  Rxc1 {[%clk 0:01:43]} 17. Qxc1 {[%clk 0:02:20]}  Bd6 {[%clk 0:01:36]} 18. Bc4 {[%clk 0:02:07]}  Qe7 {[%clk 0:01:29]} 19. Qb2 {[%clk 0:01:57]}  Kh8 {[%clk 0:01:17]} 20. Be5 {[%clk 0:01:46]}  Bc5 {[%clk 0:00:56]} 21. Rd1 {[%clk 0:01:23]}  a6 {[%clk 0:00:49]} 22. b4 {[%clk 0:01:06]}  Bxb4 {[%clk 0:00:42]} 23. Bxe6 {[%clk 0:00:56]}  Bc5 {[%clk 0:00:38]} 24. Rd7 {[%clk 0:00:40]}  Rd8 {[%clk 0:00:37]} 25. Bxg7+ {[%clk 0:00:36]}  Qxg7 {[%clk 0:00:37]} 26. Qxg7# {[%clk 0:00:35]} 1-0


[Site "https://www.chess.com"]

[Event "Titled Tuesday Blitz December 13 Late 2022"]
[White "Kim, Sergey"]
[Black "Paravyan, David"]
[WhiteFideId "13700570"]
[BlackFideId "4194985"]
[WhiteElo "2621"]
[BlackElo "2551"]
[Result "1/2-1/2"]
[Round "04"]
[TimeControl "180+1"]
[Date "2022.12.13"]
[WhiteClock "0:00:34"]
[BlackClock "0:00:27"]

1. d4 {[%clk 0:03:00]}  Nf6 {[%clk 0:03:00]} 2. c4 {[%clk 0:03:00]}  g6 {[%clk 0:03:00]} 3. Nc3 {[%clk 0:03:00]}  d5 {[%clk 0:03:01]} 4. cxd5 {[%clk 0:03:00]}  Nxd5 {[%clk 0:03:02]} 5. e4 {[%clk 0:03:00]}  Nxc3 {[%clk 0:03:03]} 6. bxc3 {[%clk 0:03:01]}  Bg7 {[%clk 0:03:03]} 7. Bc4 {[%clk 0:03:01]}  c5 {[%clk 0:03:03]} 8. Ne2 {[%clk 0:03:01]}  O-O {[%clk 0:03:04]} 9. O-O {[%clk 0:02:59]}  Nc6 {[%clk 0:03:05]} 10. Be3 {[%clk 0:02:59]}  Bg4 {[%clk 0:03:05]} 11. f3 {[%clk 0:02:59]}  Na5 {[%clk 0:03:06]} 12. Bd3 {[%clk 0:02:58]}  cxd4 {[%clk 0:03:06]} 13. cxd4 {[%clk 0:02:58]}  Be6 {[%clk 0:03:06]} 14. Qd2 {[%clk 0:02:58]}  Nc4 {[%clk 0:03:06]} 15. Bxc4 {[%clk 0:02:58]}  Bxc4 {[%clk 0:03:07]} 16. Rfd1 {[%clk 0:02:58]}  Rc8 {[%clk 0:03:04]} 17. Ng3 {[%clk 0:02:58]}  h5 {[%clk 0:02:50]} 18. Bh6 {[%clk 0:02:55]}  e6 {[%clk 0:02:41]} 19. Bxg7 {[%clk 0:02:51]}  Kxg7 {[%clk 0:02:41]} 20. Qf4 {[%clk 0:02:44]}  h4 {[%clk 0:02:39]} 21. Nf1 {[%clk 0:02:43]}  Bxf1 {[%clk 0:02:39]} 22. Kxf1 {[%clk 0:02:42]}  Qf6 {[%clk 0:02:36]} 23. Qe3 {[%clk 0:02:26]}  Rfd8 {[%clk 0:02:34]} 24. Rd2 {[%clk 0:02:20]}  b5 {[%clk 0:02:30]} 25. Rad1 {[%clk 0:02:18]}  b4 {[%clk 0:02:30]} 26. Kg1 {[%clk 0:02:04]}  Rc3 {[%clk 0:02:29]} 27. Rd3 {[%clk 0:02:04]}  Rdc8 {[%clk 0:02:25]} 28. d5 {[%clk 0:01:43]}  exd5 {[%clk 0:02:25]} 29. exd5 {[%clk 0:01:43]}  Rxd3 {[%clk 0:02:25]} 30. Qxd3 {[%clk 0:01:41]}  h3 {[%clk 0:02:22]} 31. gxh3 {[%clk 0:01:37]}  Qd6 {[%clk 0:01:37]} 32. Qd4+ {[%clk 0:01:33]}  Kh7 {[%clk 0:01:36]} 33. Rd2 {[%clk 0:01:14]}  a5 {[%clk 0:01:34]} 34. f4 {[%clk 0:01:12]}  Kg8 {[%clk 0:01:32]} 35. Qe5 {[%clk 0:01:10]}  Qxe5 {[%clk 0:00:36]} 36. fxe5 {[%clk 0:01:10]}  Kf8 {[%clk 0:00:36]} 37. d6 {[%clk 0:00:58]}  Rb8 {[%clk 0:00:36]} 38. Kf2 {[%clk 0:00:41]}  a4 {[%clk 0:00:36]} 39. Ke3 {[%clk 0:00:41]}  b3 {[%clk 0:00:36]} 40. axb3 {[%clk 0:00:41]}  axb3 {[%clk 0:00:37]} 41. Rb2 {[%clk 0:00:41]}  Ke8 {[%clk 0:00:34]} 42. Kd4 {[%clk 0:00:41]}  Kd7 {[%clk 0:00:35]} 43. Kc4 {[%clk 0:00:36]}  f6 {[%clk 0:00:24]} 44. exf6 {[%clk 0:00:33]}  Kxd6 {[%clk 0:00:24]} 45. Rxb3 {[%clk 0:00:33]}  Rxb3 {[%clk 0:00:23]} 46. Kxb3 {[%clk 0:00:33]}  Ke6 {[%clk 0:00:24]} 47. Kc3 {[%clk 0:00:34]}  Kxf6 {[%clk 0:00:24]} 48. Kd3 {[%clk 0:00:35]}  Kg5 {[%clk 0:00:25]} 49. Ke3 {[%clk 0:00:35]}  Kh4 {[%clk 0:00:26]} 50. Kf4 {[%clk 0:00:34]}  Kxh3 {[%clk 0:00:26]} 51. Kg5 {[%clk 0:00:34]}  Kxh2 {[%clk 0:00:27]} 52. Kxg6 {[%clk 0:00:34]} 1/2-1/2


[Site "https://www.chess.com"]

[Event "Titled Tuesday Blitz December 13 Late 2022"]
[White "Kovacevic, Radmila"]
[Black "D`Arruda, Ricardo D."]
[WhiteFideId "933171"]
[BlackFideId "100692"]
[WhiteElo "2244"]
[BlackElo "2419"]
[Result "0-1"]
[Round "04"]
[TimeControl "180+1"]
[Date "2022.12.14"]
[WhiteClock "0:00:02"]
[BlackClock "0:01:14"]

1. e4 {[%clk 0:03:00]}  c5 {[%clk 0:02:59]} 2. Be2 {[%clk 0:03:00]}  Nc6 {[%clk 0:02:58]} 3. f4 {[%clk 0:03:00]}  d5 {[%clk 0:02:53]} 4. d3 {[%clk 0:03:00]}  dxe4 {[%clk 0:02:51]} 5. dxe4 {[%clk 0:03:00]}  Qxd1+ {[%clk 0:02:51]} 6. Bxd1 {[%clk 0:03:01]}  Nf6 {[%clk 0:02:51]} 7. e5 {[%clk 0:03:01]}  Nd5 {[%clk 0:02:50]} 8. c3 {[%clk 0:03:00]}  Bf5 {[%clk 0:02:48]} 9. Na3 {[%clk 0:02:59]}  e6 {[%clk 0:02:45]} 10. Ne2 {[%clk 0:02:36]}  O-O-O {[%clk 0:02:43]} 11. Ng3 {[%clk 0:02:31]}  Bd3 {[%clk 0:02:38]} 12. Bb3 {[%clk 0:02:21]}  Be7 {[%clk 0:02:33]} 13. Kf2 {[%clk 0:02:15]}  h5 {[%clk 0:02:30]} 14. Rd1 {[%clk 0:02:13]}  Bg6 {[%clk 0:02:27]} 15. f5 {[%clk 0:01:18]}  Bh7 {[%clk 0:02:24]} 16. Bxd5 {[%clk 0:00:48]}  Rxd5 {[%clk 0:02:14]} 17. Rxd5 {[%clk 0:00:39]}  exd5 {[%clk 0:02:15]} 18. Nxh5 {[%clk 0:00:36]}  Bxf5 {[%clk 0:02:06]} 19. Nxg7 {[%clk 0:00:36]}  Bg6 {[%clk 0:02:01]} 20. g4 {[%clk 0:00:22]}  Rxh2+ {[%clk 0:01:55]} 21. Kg3 {[%clk 0:00:20]}  Rh1 {[%clk 0:01:47]} 22. Nb5 {[%clk 0:00:16]}  Bg5 {[%clk 0:01:41]} 23. Nd6+ {[%clk 0:00:13]}  Kb8 {[%clk 0:01:40]} 24. Bxg5 {[%clk 0:00:11]}  Rxa1 {[%clk 0:01:39]} 25. Bf4 {[%clk 0:00:11]}  Ka8 {[%clk 0:01:34]} 26. Ngf5 {[%clk 0:00:08]}  Rxa2 {[%clk 0:01:25]} 27. Nh4 {[%clk 0:00:07]}  Nd8 {[%clk 0:01:20]} 28. Nxg6 {[%clk 0:00:06]}  fxg6 {[%clk 0:01:21]} 29. b4 {[%clk 0:00:06]}  Ra3 {[%clk 0:01:19]} 30. Nb5 {[%clk 0:00:03]}  cxb4 {[%clk 0:01:13]} 31. Nxa3 {[%clk 0:00:02]}  bxa3 {[%clk 0:01:14]} 0-1


[Site "https://www.chess.com"]

[Event "Titled Tuesday Blitz December 13 Late 2022"]
[White "Kravtsiv, Martyn"]
[Black "Xiong, Jeffery"]
[WhiteFideId "14113147"]
[BlackFideId "2047640"]
[WhiteElo "2695"]
[BlackElo "2726"]
[Result "1-0"]
[Round "04"]
[TimeControl "180+1"]
[Date "2022.12.13"]
[WhiteClock "0:00:30"]
[BlackClock "0:00:06"]

1. e4 {[%clk 0:03:00]}  c5 {[%clk 0:03:00]} 2. Nf3 {[%clk 0:03:01]}  d6 {[%clk 0:03:01]} 3. Bb5+ {[%clk 0:03:01]}  Nc6 {[%clk 0:03:01]} 4. O-O {[%clk 0:03:00]}  Bd7 {[%clk 0:03:02]} 5. Re1 {[%clk 0:03:00]}  Nf6 {[%clk 0:03:03]} 6. c3 {[%clk 0:02:59]}  a6 {[%clk 0:03:03]} 7. Bf1 {[%clk 0:02:59]}  Bg4 {[%clk 0:03:04]} 8. h3 {[%clk 0:02:59]}  Bxf3 {[%clk 0:03:04]} 9. Qxf3 {[%clk 0:03:00]}  e6 {[%clk 0:03:05]} 10. d3 {[%clk 0:02:59]}  Be7 {[%clk 0:03:05]} 11. Be3 {[%clk 0:02:59]}  O-O {[%clk 0:03:06]} 12. Nd2 {[%clk 0:02:59]}  b5 {[%clk 0:03:04]} 13. a4 {[%clk 0:02:58]}  b4 {[%clk 0:03:05]} 14. d4 {[%clk 0:02:54]}  bxc3 {[%clk 0:03:04]} 15. bxc3 {[%clk 0:02:53]}  cxd4 {[%clk 0:03:05]} 16. cxd4 {[%clk 0:02:53]}  d5 {[%clk 0:03:06]} 17. e5 {[%clk 0:02:52]}  Nd7 {[%clk 0:03:06]} 18. Qg4 {[%clk 0:02:46]}  Re8 {[%clk 0:03:03]} 19. Nf3 {[%clk 0:02:43]}  Nb4 {[%clk 0:03:00]} 20. Rec1 {[%clk 0:02:42]}  Rc8 {[%clk 0:02:55]} 21. h4 {[%clk 0:02:41]}  Qb6 {[%clk 0:02:52]} 22. h5 {[%clk 0:02:38]}  Nc2 {[%clk 0:02:49]} 23. Bh6 {[%clk 0:02:35]}  g6 {[%clk 0:02:38]} 24. Rab1 {[%clk 0:02:34]}  Nb4 {[%clk 0:02:35]} 25. hxg6 {[%clk 0:02:23]}  hxg6 {[%clk 0:02:35]} 26. Bg5 {[%clk 0:02:04]}  Bf8 {[%clk 0:02:28]} 27. Qh4 {[%clk 0:02:01]}  Rxc1 {[%clk 0:02:14]} 28. Rxc1 {[%clk 0:02:00]}  Bg7 {[%clk 0:02:15]} 29. Rc3 {[%clk 0:01:43]}  Na2 {[%clk 0:01:44]} 30. Re3 {[%clk 0:01:42]}  Rc8 {[%clk 0:01:32]} 31. Be7 {[%clk 0:01:35]}  Rc1 {[%clk 0:01:21]} 32. Ng5 {[%clk 0:01:20]}  Nf8 {[%clk 0:01:19]} 33. Qf4 {[%clk 0:01:20]}  Rxf1+ {[%clk 0:00:37]} 34. Kxf1 {[%clk 0:01:20]}  Qb1+ {[%clk 0:00:37]} 35. Re1 {[%clk 0:01:18]}  Qf5 {[%clk 0:00:37]} 36. Qxf5 {[%clk 0:01:14]}  gxf5 {[%clk 0:00:38]} 37. Rb1 {[%clk 0:01:12]}  Nc3 {[%clk 0:00:35]} 38. Ra1 {[%clk 0:00:40]}  Ng6 {[%clk 0:00:35]} 39. Bb4 {[%clk 0:00:38]}  Ne4 {[%clk 0:00:18]} 40. Nxe4 {[%clk 0:00:39]}  fxe4 {[%clk 0:00:19]} 41. g3 {[%clk 0:00:35]}  f6 {[%clk 0:00:17]} 42. exf6 {[%clk 0:00:32]}  Bxf6 {[%clk 0:00:18]} 43. Bc3 {[%clk 0:00:33]}  Ne7 {[%clk 0:00:14]} 44. Rb1 {[%clk 0:00:32]}  Nf5 {[%clk 0:00:14]} 45. Rb6 {[%clk 0:00:32]}  Kf7 {[%clk 0:00:11]} 46. Rxa6 {[%clk 0:00:31]}  Nxd4 {[%clk 0:00:10]} 47. Rb6 {[%clk 0:00:30]}  e5 {[%clk 0:00:07]} 48. a5 {[%clk 0:00:30]}  Bd8 {[%clk 0:00:06]} 49. Rb7+ {[%clk 0:00:30]}  Ke6 {[%clk 0:00:06]} 50. a6 {[%clk 0:00:30]} 1-0


[Site "https://www.chess.com"]

[Event "Titled Tuesday Blitz December 13 Late 2022"]
[White "Kujawski, Adam"]
[Black "Chlpik, Martin"]
[WhiteFideId "1100920"]
[BlackFideId "14923351"]
[WhiteElo "2054"]
[BlackElo "2109"]
[Result "1-0"]
[Round "04"]
[TimeControl "180+1"]
[Date "2022.12.14"]
[WhiteClock "0:00:09"]
[BlackClock "0:00:10"]

1. e4 {[%clk 0:03:00]}  c5 {[%clk 0:02:59]} 2. Nf3 {[%clk 0:03:00]}  d6 {[%clk 0:02:59]} 3. d4 {[%clk 0:03:00]}  cxd4 {[%clk 0:03:00]} 4. Nxd4 {[%clk 0:03:00]}  Nf6 {[%clk 0:03:00]} 5. Nc3 {[%clk 0:03:01]}  a6 {[%clk 0:03:00]} 6. Bg5 {[%clk 0:03:01]}  Nbd7 {[%clk 0:03:00]} 7. Bc4 {[%clk 0:02:59]}  Qb6 {[%clk 0:03:00]} 8. O-O {[%clk 0:02:56]}  Qxb2 {[%clk 0:02:58]} 9. Qd2 {[%clk 0:02:40]}  e6 {[%clk 0:02:55]} 10. Rab1 {[%clk 0:02:28]}  Qa3 {[%clk 0:02:43]} 11. Rfe1 {[%clk 0:02:25]}  Qa5 {[%clk 0:02:37]} 12. Bd5 {[%clk 0:01:41]}  exd5 {[%clk 0:02:31]} 13. exd5+ {[%clk 0:01:41]}  Ne5 {[%clk 0:02:26]} 14. f4 {[%clk 0:01:23]}  Nd7 {[%clk 0:02:19]} 15. fxe5 {[%clk 0:01:17]}  dxe5 {[%clk 0:02:14]} 16. Nf5 {[%clk 0:00:50]}  f6 {[%clk 0:02:11]} 17. Be3 {[%clk 0:00:43]}  Nc5 {[%clk 0:02:08]} 18. Ng3 {[%clk 0:00:38]}  Bd6 {[%clk 0:01:52]} 19. Nce4 {[%clk 0:00:35]}  Qc7 {[%clk 0:01:42]} 20. Kh1 {[%clk 0:00:28]}  Nxe4 {[%clk 0:01:33]} 21. Nxe4 {[%clk 0:00:28]}  O-O {[%clk 0:01:32]} 22. c4 {[%clk 0:00:26]}  Bf5 {[%clk 0:01:27]} 23. Nxd6 {[%clk 0:00:25]}  Bxb1 {[%clk 0:01:25]} 24. Rxb1 {[%clk 0:00:19]}  Qxd6 {[%clk 0:01:25]} 25. c5 {[%clk 0:00:17]}  Qd7 {[%clk 0:01:21]} 26. d6 {[%clk 0:00:16]}  Rac8 {[%clk 0:01:13]} 27. Qd5+ {[%clk 0:00:16]}  Kh8 {[%clk 0:01:06]} 28. Rxb7 {[%clk 0:00:15]}  Qa4 {[%clk 0:01:05]} 29. d7 {[%clk 0:00:13]}  Rcd8 {[%clk 0:01:01]} 30. c6 {[%clk 0:00:12]}  Qg4 {[%clk 0:00:39]} 31. h3 {[%clk 0:00:10]}  Qg3 {[%clk 0:00:22]} 32. Bb6 {[%clk 0:00:09]}  Qe1+ {[%clk 0:00:10]} 33. Kh2 {[%clk 0:00:09]} 1-0


[Site "https://www.chess.com"]

[Event "Titled Tuesday Blitz December 13 Late 2022"]
[White "Lacasa Diaz, Jose Antonio"]
[Black "Sivakumar, Shaaketh"]
[WhiteFideId "2203375"]
[BlackFideId "30940176"]
[WhiteElo "2338"]
[BlackElo "2174"]
[Result "1-0"]
[Round "04"]
[TimeControl "180+1"]
[Date "2022.12.14"]
[WhiteClock "0:00:09"]
[BlackClock "0:00:22"]

1. e4 {[%clk 0:03:00]}  c5 {[%clk 0:02:56]} 2. Nf3 {[%clk 0:02:59]}  d6 {[%clk 0:02:56]} 3. d4 {[%clk 0:02:59]}  cxd4 {[%clk 0:02:57]} 4. Nxd4 {[%clk 0:03:00]}  Nf6 {[%clk 0:02:57]} 5. Nc3 {[%clk 0:03:00]}  a6 {[%clk 0:02:58]} 6. Be3 {[%clk 0:03:01]}  e6 {[%clk 0:02:52]} 7. g4 {[%clk 0:02:59]}  e5 {[%clk 0:02:47]} 8. Nf5 {[%clk 0:02:57]}  g6 {[%clk 0:02:34]} 9. Bg2 {[%clk 0:02:47]}  gxf5 {[%clk 0:02:34]} 10. exf5 {[%clk 0:02:46]}  Rg8 {[%clk 0:02:25]} 11. h3 {[%clk 0:02:39]}  Nc6 {[%clk 0:02:09]} 12. Qe2 {[%clk 0:02:37]}  Bd7 {[%clk 0:02:06]} 13. O-O-O {[%clk 0:02:31]}  Qa5 {[%clk 0:02:05]} 14. Kb1 {[%clk 0:02:26]}  O-O-O {[%clk 0:02:04]} 15. g5 {[%clk 0:02:17]}  Bxf5 {[%clk 0:01:54]} 16. Bxc6 {[%clk 0:02:11]}  bxc6 {[%clk 0:01:52]} 17. gxf6 {[%clk 0:02:11]}  d5 {[%clk 0:01:47]} 18. Qf3 {[%clk 0:01:31]}  Be6 {[%clk 0:01:34]} 19. Bd2 {[%clk 0:01:25]}  Qb6 {[%clk 0:01:22]} 20. Na4 {[%clk 0:01:17]}  Qb5 {[%clk 0:01:20]} 21. Nc3 {[%clk 0:01:17]}  Qb7 {[%clk 0:01:16]} 22. Qe2 {[%clk 0:01:11]}  Bd6 {[%clk 0:01:15]} 23. Qh5 {[%clk 0:00:48]}  Kc7 {[%clk 0:01:04]} 24. Qxh7 {[%clk 0:00:43]}  Rb8 {[%clk 0:01:03]} 25. b3 {[%clk 0:00:42]}  c5 {[%clk 0:00:58]} 26. Na4 {[%clk 0:00:37]}  Qb5 {[%clk 0:00:48]} 27. Qd3 {[%clk 0:00:32]}  Qxa4 {[%clk 0:00:42]} 28. Rhg1 {[%clk 0:00:16]}  Qd4 {[%clk 0:00:39]} 29. Qxa6 {[%clk 0:00:10]}  Ra8 {[%clk 0:00:38]} 30. Ba5+ {[%clk 0:00:08]}  Kd7 {[%clk 0:00:29]} 31. Qb5+ {[%clk 0:00:09]}  Kc8 {[%clk 0:00:23]} 32. Rxg8+ {[%clk 0:00:09]}  Bf8 {[%clk 0:00:22]} 33. Rxf8# {[%clk 0:00:09]} 1-0


[Site "https://www.chess.com"]

[Event "Titled Tuesday Blitz December 13 Late 2022"]
[White "Levine, David"]
[Black "Barbot, Pierre"]
[WhiteFideId "2011611"]
[BlackFideId "663727"]
[WhiteElo "2142"]
[BlackElo "2439"]
[Result "0-1"]
[Round "04"]
[TimeControl "180+1"]
[Date "2022.12.14"]
[WhiteClock "0:00:37"]
[BlackClock "0:00:08"]

1. d4 {[%clk 0:02:59]}  Nf6 {[%clk 0:02:47]} 2. c4 {[%clk 0:02:59]}  e6 {[%clk 0:02:47]} 3. g3 {[%clk 0:02:59]}  d5 {[%clk 0:02:47]} 4. Bg2 {[%clk 0:02:58]}  dxc4 {[%clk 0:02:47]} 5. Nf3 {[%clk 0:02:56]}  Nc6 {[%clk 0:02:34]} 6. Qa4 {[%clk 0:02:55]}  Bb4+ {[%clk 0:02:02]} 7. Bd2 {[%clk 0:02:55]}  Qe7 {[%clk 0:02:01]} 8. Ne5 {[%clk 0:02:42]}  O-O {[%clk 0:01:57]} 9. Nxc6 {[%clk 0:02:40]}  Bxd2+ {[%clk 0:01:56]} 10. Nxd2 {[%clk 0:02:40]}  bxc6 {[%clk 0:01:56]} 11. Qxc4 {[%clk 0:02:36]}  Rb8 {[%clk 0:01:55]} 12. Nb3 {[%clk 0:02:22]}  Rb4 {[%clk 0:01:33]} 13. Qc2 {[%clk 0:02:14]}  Nd5 {[%clk 0:01:31]} 14. O-O {[%clk 0:02:13]}  e5 {[%clk 0:01:14]} 15. e3 {[%clk 0:02:01]}  exd4 {[%clk 0:00:59]} 16. Nxd4 {[%clk 0:01:53]}  Nxe3 {[%clk 0:00:58]} 17. Nxc6 {[%clk 0:01:41]}  Nxc2 {[%clk 0:00:53]} 18. Nxe7+ {[%clk 0:01:40]}  Kh8 {[%clk 0:00:54]} 19. Rab1 {[%clk 0:01:33]}  Be6 {[%clk 0:00:47]} 20. Nd5 {[%clk 0:01:22]}  Rd4 {[%clk 0:00:20]} 21. Nxc7 {[%clk 0:01:11]}  Bxa2 {[%clk 0:00:20]} 22. Ra1 {[%clk 0:01:11]}  Nxa1 {[%clk 0:00:19]} 23. Rxa1 {[%clk 0:01:03]}  Bc4 {[%clk 0:00:18]} 24. h3 {[%clk 0:00:59]}  Rd7 {[%clk 0:00:09]} 25. Na6 {[%clk 0:00:55]}  Bxa6 {[%clk 0:00:09]} 26. Rxa6 {[%clk 0:00:54]}  h6 {[%clk 0:00:09]} 27. Be4 {[%clk 0:00:47]}  g6 {[%clk 0:00:09]} 28. b4 {[%clk 0:00:43]}  Rb8 {[%clk 0:00:09]} 29. Bc6 {[%clk 0:00:41]}  Re7 {[%clk 0:00:05]} 30. b5 {[%clk 0:00:40]}  Kg7 {[%clk 0:00:06]} 31. h4 {[%clk 0:00:40]}  Rb6 {[%clk 0:00:06]} 32. Kg2 {[%clk 0:00:41]}  Rxa6 {[%clk 0:00:06]} 33. bxa6 {[%clk 0:00:41]}  Re6 {[%clk 0:00:06]} 34. Bb5 {[%clk 0:00:40]}  Rb6 {[%clk 0:00:06]} 35. Bc4 {[%clk 0:00:39]}  Kf6 {[%clk 0:00:06]} 36. Kf3 {[%clk 0:00:39]}  Ke7 {[%clk 0:00:06]} 37. Ke3 {[%clk 0:00:39]}  f6 {[%clk 0:00:06]} 38. Kd4 {[%clk 0:00:38]}  Kd6 {[%clk 0:00:07]} 39. f3 {[%clk 0:00:37]}  g5 {[%clk 0:00:07]} 40. hxg5 {[%clk 0:00:36]}  fxg5 {[%clk 0:00:07]} 41. f4 {[%clk 0:00:36]}  gxf4 {[%clk 0:00:07]} 42. gxf4 {[%clk 0:00:36]}  Ke7 {[%clk 0:00:07]} 43. f5 {[%clk 0:00:37]}  Kf6 {[%clk 0:00:08]} 0-1


[Site "https://www.chess.com"]